[Event "*** Titled Tuesday Blitz"]
[Site "Chess.com"]
[Date "2019.12.03"]
[Round "7"]
[White "M1711"]
[Black "ElGasanov"]
[Result "0-1"]
[WhiteElo "2522"]
[BlackElo "2684"]
[TimeControl "180+2"]
[EndTime "14:37:26 PST"]
[Termination "ElGasanov won by resignation"]

1. d4 {[%clk 0:03:01.9]} 1... d5 {[%clk 0:02:39.3]} 2. c4 {[%clk 0:03:02.8]}
2... dxc4 {[%clk 0:02:38]} 3. e3 {[%clk 0:03:03.6]} 3... e5 {[%clk 0:02:34]} 4.
Bxc4 {[%clk 0:03:03.8]} 4... Nc6 {[%clk 0:02:34.7]} 5. Nf3 {[%clk 0:03:01.4]}
5... e4 {[%clk 0:02:36]} 6. Qb3 {[%clk 0:02:52.6]} 6... Qf6 {[%clk 0:02:25.6]}
7. Nfd2 {[%clk 0:02:50.7]} 7... Qg6 {[%clk 0:02:25]} 8. Nxe4 {[%clk 0:02:39.9]}
8... Bb4+ {[%clk 0:02:13.7]} 9. Bd2 {[%clk 0:02:16.5]} 9... Qxg2 {[%clk
0:01:45.1]} 10. Bxf7+ {[%clk 0:02:09.6]} 10... Kf8 {[%clk 0:01:44.8]} 11. Ng3
{[%clk 0:01:39.9]} 11... Nf6 {[%clk 0:01:31.5]} 12. Bxb4+ {[%clk 0:01:26.2]}
12... Nxb4 {[%clk 0:01:32.2]} 13. Qxb4+ {[%clk 0:01:28.1]} 13... Kxf7 {[%clk
0:01:33.7]} 14. Qc4+ {[%clk 0:01:18.1]} 14... Be6 {[%clk 0:01:27.4]} 15. Qxc7+
{[%clk 0:01:17.7]} 15... Kg6 {[%clk 0:01:27.2]} 16. Nc3 {[%clk 0:01:11.9]} 16...
Rac8 {[%clk 0:01:19.6]} 17. Qf4 {[%clk 0:01:02.4]} 17... Rhe8 {[%clk 0:00:57.1]}
18. O-O-O {[%clk 0:00:56.2]} 18... Nd5 {[%clk 0:00:23.2]} 19. Qe4+ {[%clk
0:00:33.4]} 19... Qxe4 {[%clk 0:00:24.3]} 20. Nxe4 {[%clk 0:00:35.3]} 20... Nxc3
{[%clk 0:00:23.3]} 21. Nxc3 {[%clk 0:00:33.5]} 21... Bxa2 {[%clk 0:00:24.1]} 22.
Kd2 {[%clk 0:00:26.1]} 22... Bc4 {[%clk 0:00:23.9]} 23. e4 {[%clk 0:00:25.7]}
23... b5 {[%clk 0:00:22.5]} 24. Rdg1+ {[%clk 0:00:15.2]} 24... Kf7 {[%clk
0:00:22.8]} 25. e5 {[%clk 0:00:15.3]} 25... Red8 {[%clk 0:00:11.8]} 26. Ke3
{[%clk 0:00:15.8]} 26... Be6 {[%clk 0:00:12.6]} 27. Ne4 {[%clk 0:00:14.6]} 27...
Rc6 {[%clk 0:00:13.9]} 28. Nd6+ {[%clk 0:00:11.2]} 28... Kf8 {[%clk 0:00:15.2]}
29. Ra1 {[%clk 0:00:09.2]} 29... a6 {[%clk 0:00:13.9]} 30. Ke4 {[%clk
0:00:06.6]} 30... Rc2 {[%clk 0:00:11.9]} 31. d5 {[%clk 0:00:06.8]} 31... Bh3
{[%clk 0:00:11.9]} 32. Rhg1 {[%clk 0:00:03.7]} 32... Rxf2 {[%clk 0:00:10.8]} 33.
Rxa6 {[%clk 0:00:05.3]} 33... Bg2+ {[%clk 0:00:12.1]} 34. Ke3 {[%clk 0:00:05.8]}
34... Rxb2 {[%clk 0:00:12.8]} 35. Ra7 {[%clk 0:00:03.8]} 35... b4 {[%clk
0:00:09.2]} 36. Nc4 {[%clk 0:00:03.3]} 36... Rb3+ {[%clk 0:00:09.6]} 37. Kd4
{[%clk 0:00:03.6]} 37... Bxd5 {[%clk 0:00:11.5]} 38. Nd6 {[%clk 0:00:04.2]}
38... Be6 {[%clk 0:00:08.4]} 39. Rgxg7 {[%clk 0:00:03.9]} 39... Rh3 {[%clk
0:00:09]} 40. Rge7 {[%clk 0:00:04.2]} 40... Bg8 {[%clk 0:00:08.3]} 41. Kc5
{[%clk 0:00:04.8]} 41... b3 {[%clk 0:00:08.7]} 42. Reb7 {[%clk 0:00:05.3]} 42...
Rxh2 {[%clk 0:00:09.3]} 43. Nf5 {[%clk 0:00:04]} 43... Rc2+ {[%clk 0:00:08.4]}
44. Kb4 {[%clk 0:00:03.2]} 44... b2 {[%clk 0:00:09.6]} 45. Ka3 {[%clk
0:00:02.9]} 45... b1=Q {[%clk 0:00:10.5]} 46. Rxb1 {[%clk 0:00:04.1]} 46... Ra2+
{[%clk 0:00:12.2]} 47. Kb4 {[%clk 0:00:05.6]} 47... Rxa7 {[%clk 0:00:13.5]} 48.
Rf1 {[%clk 0:00:04.8]} 48... Rb7+ {[%clk 0:00:11.4]} 49. Kc5 {[%clk 0:00:05.7]}
49... Rc7+ {[%clk 0:00:10.6]} 50. Kb6 {[%clk 0:00:06.1]} 50... Rf7 {[%clk
0:00:10.9]} 51. e6 {[%clk 0:00:07.5]} 51... Rf6 {[%clk 0:00:11.7]} 52. Kc7
{[%clk 0:00:08.5]} 52... Re8 {[%clk 0:00:12.6]} 53. e7+ {[%clk 0:00:06.4]} 53...
Rxe7+ {[%clk 0:00:13.5]} 54. Kd8 {[%clk 0:00:06.9]} 54... Ref7 {[%clk
0:00:11.9]} 55. Rg1 {[%clk 0:00:02.8]} 55... Rxf5 {[%clk 0:00:12.9]} 56. Rd1
{[%clk 0:00:03.9]} 56... R7f6 {[%clk 0:00:12.6]} 57. Rc1 {[%clk 0:00:04.5]}
57... Rd5+ {[%clk 0:00:11.8]} 58. Kc7 {[%clk 0:00:05.7]} 58... h5 {[%clk
0:00:11.4]} 59. Rd1 {[%clk 0:00:04.9]} 0-1

[Event "*** Titled Tuesday Blitz"]
[Site "Chess.com"]
[Date "2019.12.03"]
[Round "7"]
[White "jefferyx"]
[Black "DangerousPlayer1st"]
[Result "0-1"]
[WhiteElo "2893"]
[BlackElo "2808"]
[TimeControl "180+2"]
[EndTime "14:37:27 PST"]
[Termination "DangerousPlayer1st won by resignation"]

1. d4 {[%clk 0:03:01.9]} 1... Nf6 {[%clk 0:03:00]} 2. c4 {[%clk 0:03:00.1]} 2...
g6 {[%clk 0:03:01.1]} 3. Nc3 {[%clk 0:03:00.7]} 3... d5 {[%clk 0:03:02.6]} 4.
Bg5 {[%clk 0:02:57.9]} 4... Ne4 {[%clk 0:03:01.7]} 5. Bh4 {[%clk 0:02:58.7]}
5... Nxc3 {[%clk 0:03:00.8]} 6. bxc3 {[%clk 0:03:00.6]} 6... Bg7 {[%clk
0:03:02.3]} 7. e3 {[%clk 0:03:01.5]} 7... c5 {[%clk 0:02:52.6]} 8. cxd5 {[%clk
0:03:02.4]} 8... Qxd5 {[%clk 0:02:52.1]} 9. Nf3 {[%clk 0:03:03.8]} 9... Nc6
{[%clk 0:02:50.8]} 10. Be2 {[%clk 0:03:04.9]} 10... O-O {[%clk 0:02:49.4]} 11.
O-O {[%clk 0:03:05.8]} 11... Bf5 {[%clk 0:02:46.7]} 12. Nd2 {[%clk 0:03:05.7]}
12... Rfd8 {[%clk 0:02:41.6]} 13. Bf3 {[%clk 0:02:12.6]} 13... Qd6 {[%clk
0:02:41.2]} 14. Bg3 {[%clk 0:02:13.7]} 14... e5 {[%clk 0:02:35.6]} 15. d5 {[%clk
0:02:14.7]} 15... Na5 {[%clk 0:02:33.3]} 16. c4 {[%clk 0:02:04.7]} 16... Bd7
{[%clk 0:02:30.1]} 17. Rb1 {[%clk 0:02:04.2]} 17... f5 {[%clk 0:02:26.5]} 18. e4
{[%clk 0:01:59.2]} 18... f4 {[%clk 0:02:25.3]} 19. Bh4 {[%clk 0:02:00.7]} 19...
Re8 {[%clk 0:02:18.7]} 20. Bg4 {[%clk 0:02:01.9]} 20... h6 {[%clk 0:02:18.9]}
21. Bxd7 {[%clk 0:02:02.6]} 21... Qxd7 {[%clk 0:02:20.8]} 22. f3 {[%clk
0:02:04.3]} 22... g5 {[%clk 0:02:17]} 23. Bf2 {[%clk 0:02:03.2]} 23... b6 {[%clk
0:02:18.9]} 24. Qe2 {[%clk 0:01:58.7]} 24... h5 {[%clk 0:02:19.6]} 25. Nb3
{[%clk 0:01:59.8]} 25... Nb7 {[%clk 0:02:18.8]} 26. a4 {[%clk 0:02:00.6]} 26...
Bf6 {[%clk 0:02:14.6]} 27. a5 {[%clk 0:02:00.9]} 27... g4 {[%clk 0:02:15.5]} 28.
axb6 {[%clk 0:01:50.6]} 28... axb6 {[%clk 0:02:15.5]} 29. Nd2 {[%clk 0:01:52.1]}
29... Bd8 {[%clk 0:02:14.1]} 30. Ra1 {[%clk 0:01:46.1]} 30... Bc7 {[%clk
0:02:08.5]} 31. Bh4 {[%clk 0:01:45.1]} 31... Nd6 {[%clk 0:02:06.9]} 32. Bf6
{[%clk 0:01:40.5]} 32... Rxa1 {[%clk 0:01:54.5]} 33. Rxa1 {[%clk 0:01:42.4]}
33... Kf7 {[%clk 0:01:56.3]} 34. Bh4 {[%clk 0:01:42.4]} 34... Rg8 {[%clk
0:01:53.1]} 35. Ra7 {[%clk 0:01:42.2]} 35... Nc8 {[%clk 0:01:52.9]} 36. Rb7
{[%clk 0:01:43.3]} 36... Nd6 {[%clk 0:01:49.3]} 37. Ra7 {[%clk 0:01:44.4]} 37...
Nc8 {[%clk 0:01:50.9]} 38. Ra6 {[%clk 0:01:45.4]} 38... Rg6 {[%clk 0:01:44.6]}
39. Nb1 {[%clk 0:01:43.3]} 39... Nd6 {[%clk 0:01:39.8]} 40. Nc3 {[%clk
0:01:39.9]} 40... gxf3 {[%clk 0:01:28]} 41. Qxf3 {[%clk 0:01:41.8]} 41... Nxc4
{[%clk 0:01:12.9]} 42. Qxh5 {[%clk 0:01:34.1]} 42... Qg4 {[%clk 0:01:13.4]} 43.
Qxg4 {[%clk 0:01:29.7]} 43... Rxg4 {[%clk 0:01:15.3]} 44. g3 {[%clk 0:01:21.6]}
44... fxg3 {[%clk 0:01:06.3]} 45. hxg3 {[%clk 0:01:23.5]} 45... Bd6 {[%clk
0:00:41.4]} 46. Kf2 {[%clk 0:01:24.1]} 46... Ke8 {[%clk 0:00:39.2]} 47. Ra8+
{[%clk 0:01:10.5]} 47... Kf7 {[%clk 0:00:31.9]} 48. Kf3 {[%clk 0:01:12.4]} 48...
Rg6 {[%clk 0:00:30.6]} 49. Nb5 {[%clk 0:01:13.5]} 49... Bf8 {[%clk 0:00:27.1]}
50. Rb8 {[%clk 0:00:40.5]} 50... Nd2+ {[%clk 0:00:25.4]} 51. Ke3 {[%clk
0:00:40.6]} 51... Bh6+ {[%clk 0:00:27]} 52. Kd3 {[%clk 0:00:38.5]} 52... c4+
{[%clk 0:00:28.4]} 53. Kc3 {[%clk 0:00:38.9]} 53... Nxe4+ {[%clk 0:00:29.9]} 54.
Kxc4 {[%clk 0:00:40.8]} 54... Rg4 {[%clk 0:00:26.1]} 55. Rb7+ {[%clk 0:00:39.2]}
55... Kf8 {[%clk 0:00:21.6]} 56. Be7+ {[%clk 0:00:17.3]} 56... Ke8 {[%clk
0:00:20.1]} 57. Kd3 {[%clk 0:00:19.2]} 57... Bf8 {[%clk 0:00:17.3]} 58. d6
{[%clk 0:00:10.8]} 58... Nc5+ {[%clk 0:00:17.2]} 59. Ke3 {[%clk 0:00:08.5]}
59... Nxb7 {[%clk 0:00:19.1]} 60. Nc7+ {[%clk 0:00:09.1]} 60... Kf7 {[%clk
0:00:12.8]} 0-1

[Event "*** Titled Tuesday Blitz"]
[Site "Chess.com"]
[Date "2019.12.03"]
[Round "7"]
[White "semchik73"]
[Black "visa"]
[Result "0-1"]
[WhiteElo "2373"]
[BlackElo "2269"]
[TimeControl "180+2"]
[EndTime "14:37:30 PST"]
[Termination "visa won by resignation"]

1. Nf3 {[%clk 0:02:27.1]} 1... d5 {[%clk 0:02:59.2]} 2. c4 {[%clk 0:02:28]} 2...
e6 {[%clk 0:02:59.3]} 3. d4 {[%clk 0:02:28.6]} 3... Nf6 {[%clk 0:02:57.7]} 4.
Nc3 {[%clk 0:02:30]} 4... Be7 {[%clk 0:02:58]} 5. Bg5 {[%clk 0:02:30]} 5... h6
{[%clk 0:02:57.5]} 6. Bh4 {[%clk 0:02:30.8]} 6... O-O {[%clk 0:02:57.5]} 7. e3
{[%clk 0:02:31.5]} 7... Ne4 {[%clk 0:02:58.6]} 8. Bxe7 {[%clk 0:02:31.4]} 8...
Qxe7 {[%clk 0:03:00]} 9. Qc2 {[%clk 0:02:32.5]} 9... Nxc3 {[%clk 0:02:57.4]} 10.
Qxc3 {[%clk 0:02:32.9]} 10... c6 {[%clk 0:02:53.4]} 11. Bd3 {[%clk 0:02:33.5]}
11... dxc4 {[%clk 0:02:53.5]} 12. Bxc4 {[%clk 0:02:34.3]} 12... Nd7 {[%clk
0:02:54.8]} 13. O-O {[%clk 0:02:34.3]} 13... Re8 {[%clk 0:02:53.8]} 14. e4
{[%clk 0:02:33.7]} 14... e5 {[%clk 0:02:42.9]} 15. d5 {[%clk 0:02:32.6]} 15...
cxd5 {[%clk 0:02:33.5]} 16. Bxd5 {[%clk 0:02:31.4]} 16... Nf6 {[%clk 0:02:34.6]}
17. Rfe1 {[%clk 0:02:27.2]} 17... Bg4 {[%clk 0:02:31]} 18. h3 {[%clk 0:02:20.1]}
18... Nxd5 {[%clk 0:02:23.2]} 19. exd5 {[%clk 0:02:18.8]} 19... Bxf3 {[%clk
0:02:11.4]} 20. Qxf3 {[%clk 0:02:19.6]} 20... Qd6 {[%clk 0:02:08.5]} 21. Qb3
{[%clk 0:02:17.3]} 21... Re7 {[%clk 0:02:05.2]} 22. Rac1 {[%clk 0:02:16.2]}
22... Rd7 {[%clk 0:01:37]} 23. Rcd1 {[%clk 0:02:05.8]} 23... Rad8 {[%clk
0:01:27]} 24. Re4 {[%clk 0:02:05.8]} 24... f6 {[%clk 0:01:25.3]} 25. f4 {[%clk
0:02:01.8]} 25... exf4 {[%clk 0:01:20.9]} 26. Re6 {[%clk 0:02:00.2]} 26... Qc5+
{[%clk 0:01:21.7]} 27. Kh1 {[%clk 0:01:56.9]} 27... Kh8 {[%clk 0:00:46.7]} 28.
Qf3 {[%clk 0:01:17.1]} 28... Qc4 {[%clk 0:00:09.4]} 29. Re4 {[%clk 0:01:13.1]}
29... Qxa2 {[%clk 0:00:08.8]} 30. Red4 {[%clk 0:01:12.2]} 30... Qxb2 {[%clk
0:00:09.1]} 31. Qxf4 {[%clk 0:01:13.3]} 31... Qc2 {[%clk 0:00:08.3]} 32. d6
{[%clk 0:01:07.8]} 32... Qg6 {[%clk 0:00:08.5]} 33. Re1 {[%clk 0:01:05.7]} 33...
a6 {[%clk 0:00:08.4]} 34. Re7 {[%clk 0:01:04.5]} 34... Kh7 {[%clk 0:00:09.7]}
35. Qd2 {[%clk 0:00:52.2]} 35... f5 {[%clk 0:00:09.6]} 36. Rd5 {[%clk
0:00:46.5]} 36... Rxd6 {[%clk 0:00:07.4]} 37. Rxd6 {[%clk 0:00:44]} 37... Rxd6
{[%clk 0:00:08.4]} 38. Qf4 {[%clk 0:00:43.2]} 38... b5 {[%clk 0:00:08.4]} 39.
Re5 {[%clk 0:00:41.6]} 39... Rf6 {[%clk 0:00:09.2]} 40. Re7 {[%clk 0:00:40.3]}
40... Qg5 {[%clk 0:00:10.2]} 41. Qc7 {[%clk 0:00:39.8]} 41... Rg6 {[%clk
0:00:11.1]} 42. Qb7 {[%clk 0:00:39.6]} 42... b4 {[%clk 0:00:12]} 43. Re8 {[%clk
0:00:37.1]} 43... Qc1+ {[%clk 0:00:05.6]} 44. Kh2 {[%clk 0:00:37.4]} 44... Qf4+
{[%clk 0:00:06.9]} 45. Kg1 {[%clk 0:00:38.2]} 45... Qc1+ {[%clk 0:00:06]} 46.
Kh2 {[%clk 0:00:38.2]} 46... Qd2 {[%clk 0:00:05.7]} 47. Qa8 {[%clk 0:00:36.2]}
47... Qf4+ {[%clk 0:00:06.3]} 48. Kg1 {[%clk 0:00:36.1]} 48... Qc1+ {[%clk
0:00:07.5]} 49. Kh2 {[%clk 0:00:34.3]} 49... Qf4+ {[%clk 0:00:06.9]} 50. Kg1
{[%clk 0:00:34.9]} 50... Rd6 {[%clk 0:00:07.1]} 51. Rh8+ {[%clk 0:00:33.7]}
51... Kg6 {[%clk 0:00:08.6]} 52. Qe8+ {[%clk 0:00:34.6]} 52... Kg5 {[%clk
0:00:09.8]} 53. Qe2 {[%clk 0:00:27.8]} 53... Qc1+ {[%clk 0:00:09.2]} 54. Kh2
{[%clk 0:00:27.2]} 54... Qf4+ {[%clk 0:00:10.2]} 55. g3 {[%clk 0:00:28.1]} 55...
Qd2 {[%clk 0:00:09.6]} 56. h4+ {[%clk 0:00:28.3]} 56... Kg6 {[%clk 0:00:09.8]}
57. Re8 {[%clk 0:00:22]} 57... Qxe2+ {[%clk 0:00:10.6]} 58. Rxe2 {[%clk
0:00:23.4]} 58... b3 {[%clk 0:00:12.4]} 59. Rb2 {[%clk 0:00:24]} 59... Rb6
{[%clk 0:00:14]} 60. Rd2 {[%clk 0:00:24.6]} 60... a5 {[%clk 0:00:15.9]} 61. Rd8
{[%clk 0:00:25.3]} 61... a4 {[%clk 0:00:17.1]} 62. Ra8 {[%clk 0:00:26.8]} 62...
Rb4 {[%clk 0:00:18.3]} 63. Ra6+ {[%clk 0:00:26.8]} 63... Kh7 {[%clk 0:00:19.4]}
64. h5 {[%clk 0:00:27.7]} 64... b2 {[%clk 0:00:20.3]} 65. Ra8 {[%clk 0:00:26.7]}
65... b1=Q {[%clk 0:00:20.7]} 0-1

[Event "*** Titled Tuesday Blitz"]
[Site "Chess.com"]
[Date "2019.12.03"]
[Round "7"]
[White "DeviatkinAndrey"]
[Black "Zq1"]
[Result "1-0"]
[WhiteElo "2712"]
[BlackElo "2539"]
[TimeControl "180+2"]
[EndTime "14:38:02 PST"]
[Termination "DeviatkinAndrey won by resignation"]

1. d4 {[%clk 0:03:01.9]} 1... Nf6 {[%clk 0:03:00]} 2. Nf3 {[%clk 0:03:02.6]}
2... e6 {[%clk 0:03:00]} 3. Bg5 {[%clk 0:02:59.7]} 3... c5 {[%clk 0:03:00]} 4.
e3 {[%clk 0:03:00]} 4... cxd4 {[%clk 0:03:00.7]} 5. exd4 {[%clk 0:03:00.8]} 5...
b6 {[%clk 0:03:01.9]} 6. h3 {[%clk 0:02:56.8]} 6... Bb7 {[%clk 0:03:02.5]} 7.
Nbd2 {[%clk 0:02:55.6]} 7... Be7 {[%clk 0:03:03.5]} 8. Bd3 {[%clk 0:02:55.1]}
8... O-O {[%clk 0:03:04.2]} 9. O-O {[%clk 0:02:55]} 9... d6 {[%clk 0:03:05.3]}
10. Qe2 {[%clk 0:02:55.3]} 10... a6 {[%clk 0:03:05.8]} 11. c4 {[%clk 0:02:51.9]}
11... Nbd7 {[%clk 0:03:02.8]} 12. Rfe1 {[%clk 0:02:43.5]} 12... d5 {[%clk
0:03:03.5]} 13. b3 {[%clk 0:02:40.4]} 13... Re8 {[%clk 0:03:00.1]} 14. Rad1
{[%clk 0:02:39.8]} 14... Nf8 {[%clk 0:02:59.9]} 15. Ne5 {[%clk 0:02:40.5]} 15...
dxc4 {[%clk 0:02:48.4]} 16. bxc4 {[%clk 0:02:22.6]} 16... Qxd4 {[%clk
0:02:46.4]} 17. Nb3 {[%clk 0:02:23.2]} 17... Qc3 {[%clk 0:02:36.1]} 18. Bd2
{[%clk 0:01:18.4]} 18... Qb2 {[%clk 0:02:36.4]} 19. Rb1 {[%clk 0:01:16.4]} 19...
Qa3 {[%clk 0:02:22.1]} 20. Na5 {[%clk 0:00:58.8]} 20... bxa5 {[%clk 0:01:39.6]}
21. Rxb7 {[%clk 0:00:58.8]} 21... Qxa2 {[%clk 0:01:34.5]} 22. Bb1 {[%clk
0:00:45.5]} 22... Qa3 {[%clk 0:01:30.6]} 23. Nc6 {[%clk 0:00:34.2]} 23... Bc5
{[%clk 0:01:18.2]} 24. Bxa5 {[%clk 0:00:31.1]} 24... Rac8 {[%clk 0:01:12.1]} 25.
Bb4 {[%clk 0:00:26.8]} 25... Bxb4 {[%clk 0:01:10.1]} 26. Nxb4 {[%clk 0:00:28]}
26... Rb8 {[%clk 0:01:05.2]} 27. Rxb8 {[%clk 0:00:24.6]} 27... Rxb8 {[%clk
0:01:06]} 28. Nc6 {[%clk 0:00:23.3]} 28... Rc8 {[%clk 0:01:04.8]} 29. Ne5 {[%clk
0:00:23.6]} 29... Qc5 {[%clk 0:01:01.5]} 30. Bd3 {[%clk 0:00:22.2]} 30... a5
{[%clk 0:01:01.1]} 31. Qc2 {[%clk 0:00:17.9]} 31... Ra8 {[%clk 0:00:56.3]} 32.
Qa4 {[%clk 0:00:13.7]} 32... Qd4 {[%clk 0:00:45.7]} 33. Bc2 {[%clk 0:00:08.1]}
33... Qc3 {[%clk 0:00:41.5]} 34. Re2 {[%clk 0:00:08]} 34... Rd8 {[%clk
0:00:37.1]} 35. Re3 {[%clk 0:00:07]} 35... Qd2 {[%clk 0:00:24.8]} 36. Nf3 {[%clk
0:00:08]} 36... Qb4 {[%clk 0:00:17.9]} 37. Qxb4 {[%clk 0:00:08.8]} 37... axb4
{[%clk 0:00:18.7]} 38. Rb3 {[%clk 0:00:09.4]} 38... Rb8 {[%clk 0:00:19.8]} 39.
Ne5 {[%clk 0:00:10.6]} 39... N6d7 {[%clk 0:00:15.1]} 40. Nc6 {[%clk 0:00:11.2]}
40... Rb6 {[%clk 0:00:16.1]} 41. Nxb4 {[%clk 0:00:11.8]} 41... Nc5 {[%clk
0:00:17.2]} 42. Rb1 {[%clk 0:00:12.7]} 42... Nfd7 {[%clk 0:00:16.7]} 43. Nd3
{[%clk 0:00:12.7]} 43... Rxb1+ {[%clk 0:00:16.6]} 44. Bxb1 {[%clk 0:00:13.6]}
44... Nxd3 {[%clk 0:00:18.1]} 45. Bxd3 {[%clk 0:00:14.6]} 45... Kf8 {[%clk
0:00:19.7]} 46. f4 {[%clk 0:00:15.6]} 46... g6 {[%clk 0:00:21.1]} 47. Kf2 {[%clk
0:00:15.7]} 47... Ke7 {[%clk 0:00:22.7]} 48. Ke3 {[%clk 0:00:16.8]} 48... Kd6
{[%clk 0:00:24.3]} 49. Kd4 {[%clk 0:00:18.1]} 49... f6 {[%clk 0:00:24.9]} 50. h4
{[%clk 0:00:18.4]} 50... e5+ {[%clk 0:00:25.9]} 51. fxe5+ {[%clk 0:00:17.3]}
51... fxe5+ {[%clk 0:00:26.9]} 52. Ke3 {[%clk 0:00:17.5]} 52... Nc5 {[%clk
0:00:27.6]} 53. g4 {[%clk 0:00:15]} 53... Ke6 {[%clk 0:00:26.1]} 54. g5 {[%clk
0:00:14.9]} 54... Kf7 {[%clk 0:00:26.6]} 55. Be4 {[%clk 0:00:14.3]} 55... Ke6
{[%clk 0:00:27.2]} 56. Bd5+ {[%clk 0:00:15.1]} 56... Ke7 {[%clk 0:00:26.7]} 57.
Kf3 {[%clk 0:00:12]} 57... Kf8 {[%clk 0:00:26.7]} 58. Kg4 {[%clk 0:00:12]} 58...
Kg7 {[%clk 0:00:27.7]} 59. h5 {[%clk 0:00:12.1]} 59... gxh5+ {[%clk 0:00:20.5]}
60. Kxh5 {[%clk 0:00:13.1]} 60... e4 {[%clk 0:00:16.8]} 61. Kg4 {[%clk
0:00:12.5]} 61... e3 {[%clk 0:00:15.7]} 62. Bf3 {[%clk 0:00:08.8]} 62... Nd3
{[%clk 0:00:12.6]} 63. Be2 {[%clk 0:00:07.3]} 63... Ne5+ {[%clk 0:00:12.4]} 64.
Kf4 {[%clk 0:00:07.6]} 64... Nxc4 {[%clk 0:00:13.2]} 65. Bxc4 {[%clk 0:00:07]}
65... e2 {[%clk 0:00:13.6]} 66. Bxe2 {[%clk 0:00:06.9]} 66... h6 {[%clk
0:00:14.6]} 67. Bh5 {[%clk 0:00:06]} 67... Kh8 {[%clk 0:00:15.1]} 68. g6 {[%clk
0:00:06.7]} 68... Kg7 {[%clk 0:00:15.9]} 69. Kf5 {[%clk 0:00:07.9]} 1-0

[Event "*** Titled Tuesday Blitz"]
[Site "Chess.com"]
[Date "2019.12.03"]
[Round "7"]
[White "sergoy"]
[Black "VladimirBelous"]
[Result "1/2-1/2"]
[WhiteElo "2897"]
[BlackElo "2757"]
[TimeControl "180+2"]
[EndTime "14:38:15 PST"]
[Termination "Game drawn - insufficient material"]

1. d4 {[%clk 0:03:01.4]} 1... Nf6 {[%clk 0:02:59.4]} 2. c4 {[%clk 0:03:02.9]}
2... g6 {[%clk 0:03:00.2]} 3. Nc3 {[%clk 0:03:03.7]} 3... Bg7 {[%clk 0:03:01.2]}
4. e4 {[%clk 0:03:04.6]} 4... O-O {[%clk 0:03:03.1]} 5. Nf3 {[%clk 0:03:06.1]}
5... d6 {[%clk 0:03:04.6]} 6. Be2 {[%clk 0:03:07.7]} 6... Na6 {[%clk 0:03:05.4]}
7. O-O {[%clk 0:03:05.2]} 7... e5 {[%clk 0:03:06.9]} 8. Bg5 {[%clk 0:03:05.9]}
8... h6 {[%clk 0:03:03.5]} 9. Be3 {[%clk 0:03:06.9]} 9... Ng4 {[%clk 0:03:04.3]}
10. Bc1 {[%clk 0:03:07.9]} 10... c6 {[%clk 0:02:40.1]} 11. h3 {[%clk 0:03:03.9]}
11... exd4 {[%clk 0:02:29.4]} 12. Nxd4 {[%clk 0:03:04.8]} 12... Nf6 {[%clk
0:02:29.9]} 13. f3 {[%clk 0:02:53.1]} 13... Nh5 {[%clk 0:02:29]} 14. Be3 {[%clk
0:02:51.8]} 14... Qh4 {[%clk 0:01:57.2]} 15. f4 {[%clk 0:00:40.9]} 15... Bxh3
{[%clk 0:01:33.7]} 16. Bxh5 {[%clk 0:00:41.4]} 16... gxh5 {[%clk 0:01:30.7]} 17.
Nf5 {[%clk 0:00:40.2]} 17... Bxf5 {[%clk 0:01:26.3]} 18. exf5 {[%clk 0:00:41.4]}
18... Rfe8 {[%clk 0:01:18.6]} 19. Bd4 {[%clk 0:00:42.1]} 19... Rad8 {[%clk
0:00:49.3]} 20. Bxg7 {[%clk 0:00:31.4]} 20... Kxg7 {[%clk 0:00:51.2]} 21. Rb1
{[%clk 0:00:32.5]} 21... Nc5 {[%clk 0:00:48.6]} 22. b4 {[%clk 0:00:31.4]} 22...
Ne4 {[%clk 0:00:49.8]} 23. Qd3 {[%clk 0:00:24]} 23... Nf6 {[%clk 0:00:45.5]} 24.
b5 {[%clk 0:00:22.8]} 24... Ng4 {[%clk 0:00:45.8]} 25. Qh3 {[%clk 0:00:21.4]}
25... Qxh3 {[%clk 0:00:47]} 26. gxh3 {[%clk 0:00:23.3]} 26... Ne3 {[%clk
0:00:48.5]} 27. Rf2 {[%clk 0:00:18.7]} 27... Nxf5 {[%clk 0:00:49.3]} 28. bxc6
{[%clk 0:00:19.2]} 28... bxc6 {[%clk 0:00:51.2]} 29. Rf3 {[%clk 0:00:19.9]}
29... Rb8 {[%clk 0:00:49.2]} 30. Kf2 {[%clk 0:00:09.1]} 30... Rxb1 {[%clk
0:00:49]} 31. Nxb1 {[%clk 0:00:11]} 31... Rb8 {[%clk 0:00:50.3]} 32. Rb3 {[%clk
0:00:10.5]} 32... Rxb3 {[%clk 0:00:43.9]} 33. axb3 {[%clk 0:00:12.4]} 33... Kf6
{[%clk 0:00:43.8]} 34. Nd2 {[%clk 0:00:13.7]} 34... d5 {[%clk 0:00:42.4]} 35.
Ke2 {[%clk 0:00:12.1]} 35... dxc4 {[%clk 0:00:41.2]} 36. bxc4 {[%clk 0:00:13.1]}
36... Nd6 {[%clk 0:00:36.4]} 37. Kf3 {[%clk 0:00:04.9]} 37... Kf5 {[%clk
0:00:37.3]} 38. Ke3 {[%clk 0:00:06.4]} 38... a5 {[%clk 0:00:37.6]} 39. c5 {[%clk
0:00:07.8]} 39... Nb7 {[%clk 0:00:37.6]} 40. Nf3 {[%clk 0:00:09.1]} 40... Nxc5
{[%clk 0:00:32.5]} 41. Nd4+ {[%clk 0:00:10.4]} 41... Kf6 {[%clk 0:00:34.4]} 42.
Nxc6 {[%clk 0:00:12]} 42... a4 {[%clk 0:00:36.1]} 43. Kd4 {[%clk 0:00:08.9]}
43... a3 {[%clk 0:00:36.6]} 44. Nb4 {[%clk 0:00:10.1]} 44... Ne6+ {[%clk
0:00:36.7]} 45. Ke4 {[%clk 0:00:10.6]} 45... h4 {[%clk 0:00:37.6]} 46. Nd5+
{[%clk 0:00:11]} 46... Kg7 {[%clk 0:00:35.8]} 47. Nb4 {[%clk 0:00:12.3]} 47...
Nc7 {[%clk 0:00:34.8]} 48. Kf5 {[%clk 0:00:12.5]} 48... Nd5 {[%clk 0:00:27.2]}
49. Na2 {[%clk 0:00:13.6]} 49... h5 {[%clk 0:00:28.5]} 50. Kg5 {[%clk
0:00:14.3]} 50... Ne3 {[%clk 0:00:20.7]} 51. Kxh5 {[%clk 0:00:14.3]} 51... Ng2
{[%clk 0:00:22.2]} 52. Kg4 {[%clk 0:00:14.3]} 52... Kg6 {[%clk 0:00:23.6]} 53.
Kf3 {[%clk 0:00:14.7]} 53... Ne1+ {[%clk 0:00:25]} 54. Kg4 {[%clk 0:00:16.2]}
54... Nd3 {[%clk 0:00:23.7]} 55. Kxh4 {[%clk 0:00:16.7]} 55... Kf5 {[%clk
0:00:25.4]} 56. Kg3 {[%clk 0:00:17]} 56... Nxf4 {[%clk 0:00:26.8]} 57. h4 {[%clk
0:00:18.1]} 57... Ke4 {[%clk 0:00:27.7]} 58. Kg4 {[%clk 0:00:18.3]} 58... f5+
{[%clk 0:00:29.4]} 59. Kg5 {[%clk 0:00:19.8]} 59... Ne6+ {[%clk 0:00:30.8]} 60.
Kf6 {[%clk 0:00:20.6]} 60... Nf4 {[%clk 0:00:32.4]} 61. Kg5 {[%clk 0:00:21.3]}
61... Nd5 {[%clk 0:00:33.7]} 62. h5 {[%clk 0:00:22.1]} 62... Ke5 {[%clk
0:00:35.2]} 63. h6 {[%clk 0:00:20.4]} 63... Nf6 {[%clk 0:00:33.1]} 64. Nc3
{[%clk 0:00:18.2]} 64... f4 {[%clk 0:00:29.1]} 65. Kh4 {[%clk 0:00:19.6]} 65...
Kd4 {[%clk 0:00:29.8]} 66. Nb5+ {[%clk 0:00:20]} 66... Ke3 {[%clk 0:00:30.3]}
67. Nxa3 {[%clk 0:00:21.2]} 67... f3 {[%clk 0:00:32.2]} 68. Nc2+ {[%clk
0:00:19.6]} 68... Kd2 {[%clk 0:00:32.3]} 69. Kg3 {[%clk 0:00:20.6]} 69... Kxc2
{[%clk 0:00:30.4]} 70. Kxf3 {[%clk 0:00:21.9]} 70... Kd3 {[%clk 0:00:26.7]} 71.
Kf4 {[%clk 0:00:23.2]} 71... Kd4 {[%clk 0:00:27.9]} 72. Kf5 {[%clk 0:00:24.6]}
72... Nh7 {[%clk 0:00:29.8]} 73. Kg6 {[%clk 0:00:26.1]} 73... Nf8+ {[%clk
0:00:31.1]} 74. Kf7 {[%clk 0:00:27.3]} 74... Nh7 {[%clk 0:00:32.1]} 75. Kg6
{[%clk 0:00:28.6]} 75... Nf8+ {[%clk 0:00:33.3]} 76. Kg7 {[%clk 0:00:29.9]}
76... Ne6+ {[%clk 0:00:32]} 77. Kf7 {[%clk 0:00:31.2]} 77... Ke5 {[%clk
0:00:30.4]} 78. h7 {[%clk 0:00:31.6]} 78... Ng5+ {[%clk 0:00:31.5]} 79. Kg7
{[%clk 0:00:33]} 79... Nxh7 {[%clk 0:00:33.4]} 1/2-1/2